[Event "*** Titled Tuesday 3|2 Blitz"]
[Site "Chess.com"]
[Date "2017.03.07"]
[Round "4"]
[White "SantoBlue"]
[Black "DeviatkinAndrey"]
[Result "1-0"]
[WhiteElo "2410"]
[BlackElo "2505"]
[TimeControl "180+2"]
[EndTime "13:55:56 PST"]
[Termination "SantoBlue won by resignation"]

1. Nf3 {[%clk 0:03:02]} 1... d5 {[%clk 0:02:59.8]} 2. g3 {[%clk 0:03:03.3]} 2...
Bg4 {[%clk 0:02:58.2]} 3. Bg2 {[%clk 0:03:01.3]} 3... Nd7 {[%clk 0:02:58.3]} 4.
O-O {[%clk 0:03:01.5]} 4... e6 {[%clk 0:02:59.1]} 5. d3 {[%clk 0:03:02.7]} 5...
Ngf6 {[%clk 0:02:58.5]} 6. Nbd2 {[%clk 0:03:03]} 6... Be7 {[%clk 0:02:53.2]} 7.
h3 {[%clk 0:03:04.2]} 7... Bxf3 {[%clk 0:02:51]} 8. Bxf3 {[%clk 0:03:04.3]} 8...
O-O {[%clk 0:02:52.2]} 9. Bg2 {[%clk 0:03:05.2]} 9... c6 {[%clk 0:02:50.3]} 10.
b3 {[%clk 0:03:06.6]} 10... a5 {[%clk 0:02:50.7]} 11. a3 {[%clk 0:03:07.6]}
11... Qc7 {[%clk 0:02:46.5]} 12. Bb2 {[%clk 0:03:09.2]} 12... Rfe8 {[%clk
0:02:44.6]} 13. e3 {[%clk 0:03:10.8]} 13... Rad8 {[%clk 0:02:44.5]} 14. c4
{[%clk 0:03:12.2]} 14... Nc5 {[%clk 0:02:22.2]} 15. d4 {[%clk 0:03:02.9]} 15...
Nce4 {[%clk 0:02:23.3]} 16. Nxe4 {[%clk 0:03:03.5]} 16... Nxe4 {[%clk
0:02:23.3]} 17. Qc2 {[%clk 0:02:37.1]} 17... f5 {[%clk 0:02:22.1]} 18. Rac1
{[%clk 0:02:36.3]} 18... Qd7 {[%clk 0:02:19.5]} 19. g4 {[%clk 0:02:35]} 19...
Bd6 {[%clk 0:01:31.3]} 20. f3 {[%clk 0:02:23.4]} 20... Nf6 {[%clk 0:01:19.5]}
21. Qc3 {[%clk 0:02:17.1]} 21... Bc7 {[%clk 0:01:19]} 22. Rcd1 {[%clk
0:02:09.7]} 22... fxg4 {[%clk 0:01:19.1]} 23. fxg4 {[%clk 0:02:08.1]} 23... Qd6
{[%clk 0:01:20.2]} 24. Rf4 {[%clk 0:01:59.8]} 24... Rf8 {[%clk 0:01:17.7]} 25.
c5 {[%clk 0:01:59.4]} 25... Qe7 {[%clk 0:01:17.7]} 26. Rff1 {[%clk 0:01:59.2]}
26... h5 {[%clk 0:01:17.8]} 27. Qc2 {[%clk 0:01:20.2]} 27... hxg4 {[%clk
0:01:17.1]} 28. Qg6 {[%clk 0:01:21.2]} 28... Rf7 {[%clk 0:01:09.2]} 29. hxg4
{[%clk 0:01:19.5]} 29... Rdf8 {[%clk 0:01:10.4]} 30. Rf3 {[%clk 0:01:06.8]}
30... Ne4 {[%clk 0:01:09.1]} 31. Rh3 {[%clk 0:01:05.2]} 31... Ng5 {[%clk
0:00:38.1]} 32. Rh5 {[%clk 0:01:04.2]} 32... Qf6 {[%clk 0:00:38.1]} 33. Qxg5
{[%clk 0:00:23.1]} 33... Qf2+ {[%clk 0:00:38.3]} 34. Kh1 {[%clk 0:00:24.1]}
34... Qxb2 {[%clk 0:00:39.7]} 35. Qh4 {[%clk 0:00:22.3]} 35... Rf6 {[%clk
0:00:27.8]} 36. g5 {[%clk 0:00:16.7]} 36... Qc2 {[%clk 0:00:24.4]} 37. Rg1
{[%clk 0:00:15.1]} 37... Rf5 {[%clk 0:00:17.1]} 38. g6 {[%clk 0:00:09.4]} 38...
Rxh5 {[%clk 0:00:17.4]} 39. Qxh5 {[%clk 0:00:11.3]} 39... Rf5 {[%clk 0:00:11.9]}
40. Qh7+ {[%clk 0:00:12.2]} 40... Kf8 {[%clk 0:00:13.4]} 41. Qh8+ {[%clk
0:00:13.5]} 41... Ke7 {[%clk 0:00:15.3]} 42. Qxg7+ {[%clk 0:00:14.8]} 42... Kd8
{[%clk 0:00:15.9]} 43. Qh8+ {[%clk 0:00:15.7]} 43... Kd7 {[%clk 0:00:17]} 44.
Qh7+ {[%clk 0:00:15.2]} 44... Kc8 {[%clk 0:00:17.5]} 45. g7 {[%clk 0:00:15.1]}
45... Rh5+ {[%clk 0:00:08]} 46. Qxh5 {[%clk 0:00:15.7]} 1-0

[Event "*** Titled Tuesday 3|2 Blitz"]
[Site "Chess.com"]
[Date "2017.03.07"]
[Round "4"]
[White "jncool68"]
[Black "Genghis_K"]
[Result "0-1"]
[WhiteElo "2530"]
[BlackElo "2713"]
[TimeControl "180+2"]
[EndTime "13:55:57 PST"]
[Termination "Genghis_K won by resignation"]

1. e4 {[%clk 0:03:02]} 1... c5 {[%clk 0:02:58.4]} 2. Nf3 {[%clk 0:03:03]} 2...
d6 {[%clk 0:02:59.3]} 3. d4 {[%clk 0:03:01.9]} 3... cxd4 {[%clk 0:02:59.9]} 4.
Nxd4 {[%clk 0:03:03]} 4... Nf6 {[%clk 0:03:01.2]} 5. Nc3 {[%clk 0:03:04.4]} 5...
a6 {[%clk 0:03:02.8]} 6. Bg5 {[%clk 0:03:05.5]} 6... Nbd7 {[%clk 0:03:02.9]} 7.
Bc4 {[%clk 0:03:05.7]} 7... e6 {[%clk 0:02:58.4]} 8. O-O {[%clk 0:02:52.5]} 8...
Qa5 {[%clk 0:02:54.8]} 9. Qd2 {[%clk 0:02:43.2]} 9... h6 {[%clk 0:02:51.4]} 10.
Be3 {[%clk 0:02:37]} 10... Ne5 {[%clk 0:02:44.7]} 11. Bb3 {[%clk 0:02:35.1]}
11... Neg4 {[%clk 0:02:44.5]} 12. Ba4+ {[%clk 0:01:49.6]} 12... b5 {[%clk
0:02:31]} 13. Ncxb5 {[%clk 0:01:46.4]} 13... axb5 {[%clk 0:02:29.1]} 14. Bxb5+
{[%clk 0:01:46.3]} 14... Bd7 {[%clk 0:02:30.3]} 15. b4 {[%clk 0:01:44.3]} 15...
Qc7 {[%clk 0:02:24]} 16. a4 {[%clk 0:01:37.7]} 16... Be7 {[%clk 0:02:05.6]} 17.
Bxd7+ {[%clk 0:01:12.3]} 17... Qxd7 {[%clk 0:02:01]} 18. b5 {[%clk 0:01:10.5]}
18... O-O {[%clk 0:02:00.8]} 19. Nc6 {[%clk 0:01:09.5]} 19... Nxe4 {[%clk
0:01:58.9]} 20. Qb4 {[%clk 0:01:10.2]} 20... Nxe3 {[%clk 0:01:48.2]} 21. fxe3
{[%clk 0:01:10.4]} 21... f5 {[%clk 0:01:49.7]} 22. c4 {[%clk 0:00:55.9]} 22...
Bg5 {[%clk 0:01:50.5]} 23. Rf3 {[%clk 0:00:53.6]} 23... d5 {[%clk 0:01:37.5]}
24. Rd1 {[%clk 0:00:47.2]} 24... Bf6 {[%clk 0:01:31.7]} 25. cxd5 {[%clk
0:00:47.1]} 25... exd5 {[%clk 0:01:32.4]} 26. a5 {[%clk 0:00:45.7]} 26... Nc3
{[%clk 0:01:19.5]} 27. Rd3 {[%clk 0:00:42.8]} 27... Nxb5 {[%clk 0:01:03.1]} 28.
Qxb5 {[%clk 0:00:43]} 28... Rfc8 {[%clk 0:01:04.7]} 29. Nd4 {[%clk 0:00:28.7]}
29... Qxb5 {[%clk 0:01:05.6]} 30. Nxb5 {[%clk 0:00:30.1]} 30... Rxa5 {[%clk
0:01:05.9]} 31. Rxd5 {[%clk 0:00:30.5]} 31... Bg5 {[%clk 0:00:53.3]} 32. h4
{[%clk 0:00:18.6]} 32... Rc1+ {[%clk 0:00:48.2]} 33. Kh2 {[%clk 0:00:18.5]}
33... Bxh4 {[%clk 0:00:49.3]} 34. Rdxf5 {[%clk 0:00:09.9]} 34... Raa1 {[%clk
0:00:47.6]} 35. g3 {[%clk 0:00:11.2]} 35... Rh1+ {[%clk 0:00:24.9]} 36. Kg2
{[%clk 0:00:12.3]} 36... Rag1+ {[%clk 0:00:26.2]} 37. Kf2 {[%clk 0:00:13.4]}
37... Bxg3+ {[%clk 0:00:27.4]} 38. Rxg3 {[%clk 0:00:14.1]} 38... Rf1+ {[%clk
0:00:25.5]} 39. Kg2 {[%clk 0:00:15.5]} 39... Rxf5 {[%clk 0:00:26.9]} 40. Kxh1
{[%clk 0:00:15.9]} 40... Rxb5 {[%clk 0:00:28.3]} 41. Kg2 {[%clk 0:00:17.8]}
41... g5 {[%clk 0:00:22.6]} 42. Kf3 {[%clk 0:00:18.9]} 42... Kg7 {[%clk
0:00:24.2]} 43. Rg2 {[%clk 0:00:19.9]} 43... Kg6 {[%clk 0:00:24.6]} 44. Rc2
{[%clk 0:00:20.4]} 44... Rf5+ {[%clk 0:00:23.4]} 45. Ke4 {[%clk 0:00:20.7]}
45... h5 {[%clk 0:00:24]} 46. Rc6+ {[%clk 0:00:20.8]} 46... Rf6 {[%clk
0:00:25.4]} 47. Rc8 {[%clk 0:00:22.7]} 47... h4 {[%clk 0:00:26.6]} 48. Rh8
{[%clk 0:00:23.8]} 48... Rf7 {[%clk 0:00:28]} 49. Kd5 {[%clk 0:00:24.4]} 49...
Rh7 {[%clk 0:00:29]} 50. Rg8+ {[%clk 0:00:25.7]} 50... Kf6 {[%clk 0:00:24.5]}
51. e4 {[%clk 0:00:26.2]} 51... h3 {[%clk 0:00:25.1]} 52. e5+ {[%clk 0:00:27.3]}
52... Kf5 {[%clk 0:00:22.6]} 53. Rf8+ {[%clk 0:00:28.4]} 53... Kg4 {[%clk
0:00:23.3]} 54. Rf1 {[%clk 0:00:29.2]} 54... h2 {[%clk 0:00:24.7]} 55. e6 {[%clk
0:00:30.6]} 55... h1=Q+ {[%clk 0:00:25.1]} 0-1

[Event "*** Titled Tuesday 3|2 Blitz"]
[Site "Chess.com"]
[Date "2017.03.07"]
[Round "4"]
[White "FrankieJay"]
[Black "Andrejkin"]
[Result "0-1"]
[WhiteElo "2281"]
[BlackElo "2251"]
[TimeControl "180+2"]
[EndTime "13:56:09 PST"]
[Termination "Andrejkin won by resignation"]

1. e4 {[%clk 0:03:02]} 1... c5 {[%clk 0:02:55.6]} 2. Nf3 {[%clk 0:03:02.1]} 2...
a6 {[%clk 0:02:52.1]} 3. c3 {[%clk 0:03:00.5]} 3... e6 {[%clk 0:02:49.8]} 4. d4
{[%clk 0:02:58.1]} 4... d5 {[%clk 0:02:47.5]} 5. Bd3 {[%clk 0:02:43.4]} 5...
dxe4 {[%clk 0:02:44.7]} 6. Bxe4 {[%clk 0:02:44.1]} 6... cxd4 {[%clk 0:02:41.2]}
7. cxd4 {[%clk 0:02:44.2]} 7... Nf6 {[%clk 0:02:40.4]} 8. Bc2 {[%clk 0:02:44.7]}
8... Nc6 {[%clk 0:02:38.4]} 9. O-O {[%clk 0:02:45.1]} 9... Be7 {[%clk
0:02:35.8]} 10. Nc3 {[%clk 0:02:46]} 10... O-O {[%clk 0:02:32]} 11. a3 {[%clk
0:02:44.2]} 11... b5 {[%clk 0:02:29.8]} 12. Qd3 {[%clk 0:02:39.5]} 12... Bb7
{[%clk 0:02:28.9]} 13. Bg5 {[%clk 0:02:38.2]} 13... g6 {[%clk 0:02:27.4]} 14. b4
{[%clk 0:02:17.5]} 14... Rc8 {[%clk 0:02:24]} 15. Bb3 {[%clk 0:02:14.1]} 15...
Ng4 {[%clk 0:02:21.7]} 16. Bxe7 {[%clk 0:02:11.1]} 16... Nxe7 {[%clk 0:02:19.8]}
17. h3 {[%clk 0:02:09.8]} 17... Bxf3 {[%clk 0:02:17.7]} 18. Qxf3 {[%clk
0:02:09.4]} 18... Nh2 {[%clk 0:02:08.8]} 19. Kxh2 {[%clk 0:02:09.3]} 19... Qc7+
{[%clk 0:02:10.1]} 20. Kg1 {[%clk 0:01:38.9]} 20... Qxc3 {[%clk 0:02:09.7]} 21.
Qxc3 {[%clk 0:01:40.8]} 21... Rxc3 {[%clk 0:02:09.3]} 22. Rab1 {[%clk
0:01:42.4]} 22... Rd8 {[%clk 0:02:04.4]} 23. Rfd1 {[%clk 0:01:43.4]} 23... Kg7
{[%clk 0:02:03]} 24. Kf1 {[%clk 0:01:37]} 24... Nf5 {[%clk 0:02:00.9]} 25. Rdc1
{[%clk 0:01:22.1]} 25... Rxc1+ {[%clk 0:01:55.8]} 26. Rxc1 {[%clk 0:01:24]}
26... Nxd4 {[%clk 0:01:55.2]} 27. Bd1 {[%clk 0:01:24.7]} 27... e5 {[%clk
0:01:53.7]} 28. Rc7 {[%clk 0:01:23]} 28... Ne6 {[%clk 0:01:51.5]} 29. Rc1 {[%clk
0:01:24]} 29... Rd3 {[%clk 0:01:49.1]} 30. a4 {[%clk 0:01:24.9]} 30... Rd4
{[%clk 0:01:47.7]} 31. Rb1 {[%clk 0:01:15]} 31... bxa4 {[%clk 0:01:46]} 32. Bxa4
{[%clk 0:01:16.9]} 32... a5 {[%clk 0:01:45.6]} 33. b5 {[%clk 0:00:47.5]} 33...
Rxa4 {[%clk 0:01:44.9]} 34. b6 {[%clk 0:00:48.7]} 34... Nd8 {[%clk 0:01:33.3]}
35. b7 {[%clk 0:00:37.6]} 35... Nxb7 {[%clk 0:01:34.4]} 36. Rxb7 {[%clk
0:00:39.5]} 36... Ra1+ {[%clk 0:01:33.1]} 37. Ke2 {[%clk 0:00:40.4]} 37... a4
{[%clk 0:01:32.4]} 38. g4 {[%clk 0:00:39.8]} 38... a3 {[%clk 0:01:31.7]} 39. Ra7
{[%clk 0:00:40.9]} 39... a2 {[%clk 0:01:29.6]} 40. Kf3 {[%clk 0:00:39.5]} 40...
e4+ {[%clk 0:01:28.2]} 41. Kg2 {[%clk 0:00:35.1]} 41... Kf6 {[%clk 0:01:26.8]}
42. Kh2 {[%clk 0:00:29.6]} 42... Kg5 {[%clk 0:01:25.2]} 43. Kg2 {[%clk
0:00:30.2]} 43... f6 {[%clk 0:01:20.9]} 44. Kh2 {[%clk 0:00:26.5]} 44... Kf4
{[%clk 0:01:16.8]} 45. Kg2 {[%clk 0:00:27.7]} 45... f5 {[%clk 0:01:14]} 46. gxf5
{[%clk 0:00:28.3]} 46... gxf5 {[%clk 0:01:15.3]} 47. Ra8 {[%clk 0:00:26.6]}
47... h5 {[%clk 0:01:13.3]} 48. Ra7 {[%clk 0:00:25.6]} 48... h4 {[%clk
0:01:12.4]} 49. Ra3 {[%clk 0:00:26.3]} 49... Ke5 {[%clk 0:01:11]} 50. Ra5+
{[%clk 0:00:26]} 50... Kd4 {[%clk 0:01:11.3]} 51. Ra4+ {[%clk 0:00:26.4]} 51...
Kc3 {[%clk 0:01:11.6]} 52. Ra8 {[%clk 0:00:27.4]} 52... f4 {[%clk 0:01:07.6]}
53. Rc8+ {[%clk 0:00:26.7]} 53... Kd2 {[%clk 0:01:06.4]} 54. Ra8 {[%clk
0:00:28.2]} 54... Ke2 {[%clk 0:01:01.3]} 55. Ra7 {[%clk 0:00:26.1]} 55... f3+
{[%clk 0:01:00.3]} 56. Kh2 {[%clk 0:00:26.8]} 56... e3 {[%clk 0:01:00.4]} 57.
fxe3 {[%clk 0:00:20.8]} 57... f2 {[%clk 0:01:01.6]} 0-1

[Event "*** Titled Tuesday 3|2 Blitz"]
[Site "Chess.com"]
[Date "2017.03.07"]
[Round "4"]
[White "VMikhalevski"]
[Black "Lupul_Cenusiu"]
[Result "1-0"]
[WhiteElo "2544"]
[BlackElo "2410"]
[TimeControl "180+2"]
[EndTime "13:56:16 PST"]
[Termination "VMikhalevski won by resignation"]

1. Nf3 {[%clk 0:03:02]} 1... d6 {[%clk 0:02:59.5]} 2. d4 {[%clk 0:02:59]} 2...
Nf6 {[%clk 0:03:00.1]} 3. g3 {[%clk 0:02:59]} 3... c6 {[%clk 0:03:01.1]} 4. Bg2
{[%clk 0:02:59.2]} 4... g6 {[%clk 0:03:02.5]} 5. O-O {[%clk 0:02:59.2]} 5... Bg7
{[%clk 0:03:03.5]} 6. b3 {[%clk 0:03:00.1]} 6... O-O {[%clk 0:03:03.7]} 7. Bb2
{[%clk 0:03:01.2]} 7... a5 {[%clk 0:03:02.4]} 8. c4 {[%clk 0:02:59.8]} 8... Bf5
{[%clk 0:03:00.6]} 9. Nbd2 {[%clk 0:02:56.4]} 9... Ne4 {[%clk 0:03:00.6]} 10.
Nh4 {[%clk 0:02:56.7]} 10... d5 {[%clk 0:02:48.3]} 11. Nxf5 {[%clk 0:02:51.5]}
11... gxf5 {[%clk 0:02:49]} 12. Nf3 {[%clk 0:02:52.1]} 12... Nd7 {[%clk
0:02:46.4]} 13. e3 {[%clk 0:02:50.8]} 13... e6 {[%clk 0:02:47.2]} 14. Ne1 {[%clk
0:02:50.7]} 14... a4 {[%clk 0:02:45.9]} 15. Qc2 {[%clk 0:02:48.9]} 15... Qa5
{[%clk 0:02:41.7]} 16. Rd1 {[%clk 0:02:43.3]} 16... b5 {[%clk 0:02:33.9]} 17. c5
{[%clk 0:02:38.9]} 17... a3 {[%clk 0:02:07.9]} 18. Bc1 {[%clk 0:02:17.2]} 18...
Rab8 {[%clk 0:01:47.4]} 19. Nd3 {[%clk 0:02:11.2]} 19... b4 {[%clk 0:01:45.6]}
20. Rde1 {[%clk 0:02:08.6]} 20... Qb5 {[%clk 0:01:37.4]} 21. f3 {[%clk
0:02:00.8]} 21... Nc3 {[%clk 0:01:37.1]} 22. Bxa3 {[%clk 0:01:22.2]} 22... Nxa2
{[%clk 0:01:28.1]} 23. Bb2 {[%clk 0:01:22.6]} 23... Nc3 {[%clk 0:01:28.8]} 24.
Ra1 {[%clk 0:01:11.3]} 24... Bh6 {[%clk 0:01:22.2]} 25. Rfe1 {[%clk 0:01:05]}
25... Ra8 {[%clk 0:01:18.9]} 26. Bf1 {[%clk 0:00:48]} 26... Rxa1 {[%clk
0:01:17.8]} 27. Bxa1 {[%clk 0:00:47.6]} 27... Ra8 {[%clk 0:01:09.5]} 28. Nxb4
{[%clk 0:00:44.3]} 28... Rxa1 {[%clk 0:00:04.2]} 29. Bxb5 {[%clk 0:00:37.8]}
29... Rxe1+ {[%clk 0:00:03.9]} 30. Kf2 {[%clk 0:00:38.5]} 30... Rxe3 {[%clk
0:00:04.3]} 31. Bxc6 {[%clk 0:00:36.6]} 31... Re2+ {[%clk 0:00:02.8]} 32. Qxe2
{[%clk 0:00:36.1]} 32... Nxe2 {[%clk 0:00:03.8]} 33. Kxe2 {[%clk 0:00:37.2]}
33... Nb8 {[%clk 0:00:03.7]} 34. Bb5 {[%clk 0:00:35.1]} 34... Bf8 {[%clk
0:00:04.5]} 35. Nd3 {[%clk 0:00:35.1]} 35... f6 {[%clk 0:00:04.9]} 36. Be8
{[%clk 0:00:35]} 36... Be7 {[%clk 0:00:04.7]} 37. b4 {[%clk 0:00:33.5]} 37...
Kf8 {[%clk 0:00:05.8]} 38. Ba4 {[%clk 0:00:33.9]} 38... Bd8 {[%clk 0:00:04.8]}
39. b5 {[%clk 0:00:34.5]} 39... Ba5 {[%clk 0:00:05.7]} 40. b6 {[%clk 0:00:35.1]}
40... Ke7 {[%clk 0:00:06.8]} 41. Nf4 {[%clk 0:00:33.5]} 41... Na6 {[%clk
0:00:07.3]} 42. Bb5 {[%clk 0:00:32.9]} 42... Nb4 {[%clk 0:00:08.3]} 43. Nh5
{[%clk 0:00:26.4]} 43... e5 {[%clk 0:00:09.2]} 44. Ng7 {[%clk 0:00:25.4]} 44...
f4 {[%clk 0:00:10.2]} 45. gxf4 {[%clk 0:00:22.7]} 45... e4 {[%clk 0:00:11]} 46.
fxe4 {[%clk 0:00:22.3]} 46... dxe4 {[%clk 0:00:12.3]} 47. Bc4 {[%clk 0:00:21.6]}
47... Nc6 {[%clk 0:00:11.9]} 48. Nf5+ {[%clk 0:00:21.9]} 48... Kd7 {[%clk
0:00:13.2]} 49. d5 {[%clk 0:00:21.6]} 49... Nb4 {[%clk 0:00:14]} 50. c6+ {[%clk
0:00:22.3]} 50... Kd8 {[%clk 0:00:14.3]} 51. c7+ {[%clk 0:00:21.6]} 51... Kd7
{[%clk 0:00:15.6]} 52. Ne7 {[%clk 0:00:22.2]} 52... Bxb6 {[%clk 0:00:13.5]} 53.
c8=Q+ {[%clk 0:00:21.9]} 53... Kxe7 {[%clk 0:00:14.7]} 54. Qe6+ {[%clk
0:00:22.9]} 1-0

[Event "*** Titled Tuesday 3|2 Blitz"]
[Site "Chess.com"]
[Date "2017.03.07"]
[Round "4"]
[White "Grootneus"]
[Black "P0ubelle"]
[Result "1-0"]
[WhiteElo "2145"]
[BlackElo "2036"]
[TimeControl "180+2"]
[EndTime "13:56:18 PST"]
[Termination "Grootneus won by resignation"]

1. e4 {[%clk 0:03:02]} 1... e5 {[%clk 0:03:00]} 2. Nf3 {[%clk 0:03:01.4]} 2...
Nc6 {[%clk 0:03:00.7]} 3. Bb5 {[%clk 0:03:03]} 3... a6 {[%clk 0:03:01.3]} 4. Ba4
{[%clk 0:03:04.7]} 4... Nf6 {[%clk 0:03:02.9]} 5. d3 {[%clk 0:03:06.1]} 5... b5
{[%clk 0:03:03]} 6. Bb3 {[%clk 0:03:06.9]} 6... d6 {[%clk 0:03:03.9]} 7. a4
{[%clk 0:03:03.7]} 7... bxa4 {[%clk 0:02:48.6]} 8. Bxa4 {[%clk 0:03:03.5]} 8...
Bd7 {[%clk 0:02:46.4]} 9. O-O {[%clk 0:03:04.1]} 9... Be7 {[%clk 0:02:47.2]} 10.
d4 {[%clk 0:02:58.1]} 10... exd4 {[%clk 0:02:47.5]} 11. Nxd4 {[%clk 0:02:59]}
11... Nxd4 {[%clk 0:02:48.5]} 12. Qxd4 {[%clk 0:02:57.4]} 12... O-O {[%clk
0:02:45.8]} 13. Nc3 {[%clk 0:02:56.3]} 13... Bxa4 {[%clk 0:02:36.7]} 14. Rxa4
{[%clk 0:02:54.7]} 14... Qd7 {[%clk 0:02:32.1]} 15. e5 {[%clk 0:02:45.9]} 15...
dxe5 {[%clk 0:02:31.4]} 16. Qxe5 {[%clk 0:02:38.8]} 16... Bd6 {[%clk 0:02:26.5]}
17. Qg5 {[%clk 0:02:28.2]} 17... Rfb8 {[%clk 0:02:06.6]} 18. Qh4 {[%clk
0:02:11.1]} 18... Nd5 {[%clk 0:02:01.6]} 19. Nxd5 {[%clk 0:02:07.8]} 19... Bxh2+
{[%clk 0:01:54.9]} 20. Qxh2 {[%clk 0:01:54.6]} 20... Qxa4 {[%clk 0:01:51.7]} 21.
Nxc7 {[%clk 0:01:48]} 21... Ra7 {[%clk 0:01:44.4]} 22. b3 {[%clk 0:01:31.1]}
22... Qc6 {[%clk 0:01:17.7]} 23. Nd5 {[%clk 0:00:52.4]} 23... Rd8 {[%clk
0:01:16.1]} 24. Nb4 {[%clk 0:00:41.4]} 24... Qc5 {[%clk 0:00:59.2]} 25. Be3
{[%clk 0:00:37.5]} 25... Qxb4 {[%clk 0:00:54.6]} 26. Bxa7 {[%clk 0:00:38.6]}
26... Qc3 {[%clk 0:00:51.7]} 27. Bb6 {[%clk 0:00:33.3]} 27... Rc8 {[%clk
0:00:49.6]} 28. Be3 {[%clk 0:00:24.3]} 28... Qxc2 {[%clk 0:00:48.4]} 29. Qd6
{[%clk 0:00:23.4]} 29... Qxb3 {[%clk 0:00:39.5]} 30. Qxa6 {[%clk 0:00:24.3]}
30... Re8 {[%clk 0:00:30.2]} 31. Qc6 {[%clk 0:00:22.4]} 31... Qb8 {[%clk
0:00:26.5]} 32. Bf4 {[%clk 0:00:20.4]} 32... Qc8 {[%clk 0:00:25]} 33. Qxc8
{[%clk 0:00:20.8]} 33... Rxc8 {[%clk 0:00:26.9]} 34. Rc1 {[%clk 0:00:22.5]}
34... Re8 {[%clk 0:00:27.3]} 35. Rb1 {[%clk 0:00:22.7]} 35... h6 {[%clk
0:00:26.2]} 36. Rb8 {[%clk 0:00:23.4]} 36... Rxb8 {[%clk 0:00:25.1]} 37. Bxb8
{[%clk 0:00:25.3]} 37... Kh7 {[%clk 0:00:26.4]} 38. Kh2 {[%clk 0:00:26.9]} 38...
Kg6 {[%clk 0:00:27.9]} 39. Kg3 {[%clk 0:00:28.6]} 39... Kf5 {[%clk 0:00:29.4]}
40. Ba7 {[%clk 0:00:29.1]} 40... h5 {[%clk 0:00:30.5]} 41. Bd4 {[%clk
0:00:30.2]} 41... g5 {[%clk 0:00:31]} 42. Kf3 {[%clk 0:00:31.2]} 42... h4 {[%clk
0:00:31.5]} 43. Bc5 {[%clk 0:00:31.2]} 43... g4+ {[%clk 0:00:30.3]} 44. Ke3
{[%clk 0:00:32.4]} 44... Ke5 {[%clk 0:00:26.2]} 45. Ba7 {[%clk 0:00:32.8]} 45...
Kf5 {[%clk 0:00:24.2]} 46. Bb8 {[%clk 0:00:32.9]} 46... Kg5 {[%clk 0:00:22.4]}
47. Bc7 {[%clk 0:00:33.6]} 47... Kf5 {[%clk 0:00:23]} 48. Bd8 {[%clk 0:00:33.5]}
48... f6 {[%clk 0:00:22.8]} 49. Bc7 {[%clk 0:00:34]} 49... Kg5 {[%clk
0:00:22.9]} 50. Ke4 {[%clk 0:00:34.5]} 50... f5+ {[%clk 0:00:23.7]} 51. Ke3
{[%clk 0:00:36]} 51... h3 {[%clk 0:00:22]} 52. gxh3 {[%clk 0:00:37]} 52... gxh3
{[%clk 0:00:23.9]} 53. Kf3 {[%clk 0:00:33.1]} 53... Kf6 {[%clk 0:00:19.9]} 54.
Kg3 {[%clk 0:00:33.7]} 54... Ke6 {[%clk 0:00:21.4]} 55. Kxh3 {[%clk 0:00:34.7]}
55... Kd5 {[%clk 0:00:23.3]} 56. Bf4 {[%clk 0:00:36]} 56... Ke4 {[%clk
0:00:25.2]} 57. Kg3 {[%clk 0:00:37.5]} 57... Kd3 {[%clk 0:00:25.8]} 58. Be3
{[%clk 0:00:37.8]} 58... Ke4 {[%clk 0:00:27.3]} 59. Bc1 {[%clk 0:00:37.2]} 59...
Ke5 {[%clk 0:00:27.8]} 60. Kf3 {[%clk 0:00:38.3]} 60... Kf6 {[%clk 0:00:27]} 61.
Kf4 {[%clk 0:00:40.2]} 61... Ke6 {[%clk 0:00:28.3]} 62. Bb2 {[%clk 0:00:40.9]}
1-0

[Event "*** Titled Tuesday 3|2 Blitz"]
[Site "Chess.com"]
[Date "2017.03.07"]
[Round "4"]
[White "ZapataCharlesS"]
[Black "workhard91"]
[Result "1-0"]
[WhiteElo "2636"]
[BlackElo "2229"]
[TimeControl "180+2"]
[EndTime "13:56:23 PST"]
[Termination "ZapataCharlesS won by resignation"]

1. d4 {[%clk 0:03:02]} 1... Nf6 {[%clk 0:03:00.3]} 2. Nf3 {[%clk 0:03:02.7]}
2... e6 {[%clk 0:03:00.1]} 3. Bg5 {[%clk 0:03:03.4]} 3... h6 {[%clk 0:02:52.1]}
4. Bxf6 {[%clk 0:03:04.1]} 4... Qxf6 {[%clk 0:02:54]} 5. e4 {[%clk 0:03:06]}
5... d6 {[%clk 0:02:54]} 6. Nc3 {[%clk 0:03:04.3]} 6... g6 {[%clk 0:02:50.5]} 7.
e5 {[%clk 0:03:05.3]} 7... Qd8 {[%clk 0:02:48.4]} 8. Bb5+ {[%clk 0:02:58.7]}
8... Bd7 {[%clk 0:02:38.1]} 9. Qe2 {[%clk 0:02:56.8]} 9... d5 {[%clk 0:01:49.8]}
10. h4 {[%clk 0:02:51.2]} 10... a6 {[%clk 0:01:45.6]} 11. Bxd7+ {[%clk
0:02:47.5]} 11... Qxd7 {[%clk 0:01:47.5]} 12. h5 {[%clk 0:02:49.4]} 12... g5
{[%clk 0:01:48.3]} 13. O-O-O {[%clk 0:02:43.4]} 13... Nc6 {[%clk 0:01:35]} 14.
Nh2 {[%clk 0:02:35.4]} 14... O-O-O {[%clk 0:01:35.4]} 15. Ng4 {[%clk 0:02:36]}
15... Bg7 {[%clk 0:01:25.9]} 16. Rh3 {[%clk 0:02:37.4]} 16... Ne7 {[%clk
0:01:07.6]} 17. b3 {[%clk 0:02:27.5]} 17... Nf5 {[%clk 0:01:04.6]} 18. Na4
{[%clk 0:02:27.5]} 18... Qc6 {[%clk 0:00:59.2]} 19. Rc3 {[%clk 0:02:25.8]} 19...
Qb5 {[%clk 0:00:56.2]} 20. Qf3 {[%clk 0:02:06.1]} 20... Bf8 {[%clk 0:00:47.7]}
21. Nf6 {[%clk 0:01:54.8]} 21... Bb4 {[%clk 0:00:35.6]} 22. Rcd3 {[%clk
0:01:54.4]} 22... Kb8 {[%clk 0:00:34.6]} 23. g4 {[%clk 0:01:40.4]} 23... Nh4
{[%clk 0:00:34]} 24. Qg3 {[%clk 0:01:41.5]} 24... Be7 {[%clk 0:00:32.3]} 25. f4
{[%clk 0:01:38.9]} 25... Rc8 {[%clk 0:00:20.3]} 26. fxg5 {[%clk 0:01:37.6]}
26... hxg5 {[%clk 0:00:22.2]} 27. Rc3 {[%clk 0:01:38.8]} 27... b6 {[%clk
0:00:21.9]} 28. Kb2 {[%clk 0:01:32.2]} 28... c5 {[%clk 0:00:20.5]} 29. dxc5
{[%clk 0:01:24.4]} 29... bxc5 {[%clk 0:00:22.4]} 30. Qf2 {[%clk 0:01:25.3]}
30... c4 {[%clk 0:00:16.7]} 31. Qb6+ {[%clk 0:01:06.5]} 31... Qxb6 {[%clk
0:00:17.7]} 32. Nxb6 {[%clk 0:01:07.2]} 32... Rc6 {[%clk 0:00:09.7]} 33. Na4
{[%clk 0:00:59.9]} 33... Bb4 {[%clk 0:00:10.3]} 34. Re3 {[%clk 0:00:55.4]} 34...
Rhc8 {[%clk 0:00:11]} 35. c3 {[%clk 0:00:53.6]} 35... Be7 {[%clk 0:00:04.8]} 36.
b4 {[%clk 0:00:55.1]} 36... Bxf6 {[%clk 0:00:05.6]} 37. exf6 {[%clk 0:00:56.2]}
37... Rh8 {[%clk 0:00:05.5]} 38. Nc5 {[%clk 0:00:55.9]} 38... Kc7 {[%clk
0:00:05.3]} 39. a4 {[%clk 0:00:52.1]} 39... Rh6 {[%clk 0:00:05.1]} 40. Rf1
{[%clk 0:00:51.6]} 40... e5 {[%clk 0:00:04.9]} 41. Rxe5 {[%clk 0:00:49.4]} 41...
Rcxf6 {[%clk 0:00:06.5]} 42. Re7+ {[%clk 0:00:49.5]} 42... Kd8 {[%clk
0:00:06.2]} 43. Rxf7 {[%clk 0:00:51.4]} 43... Rxf1 {[%clk 0:00:05.3]} 44. Rxf1
{[%clk 0:00:49.3]} 44... Ng2 {[%clk 0:00:06.1]} 45. Rf5 {[%clk 0:00:44.5]} 45...
Ne3 {[%clk 0:00:05.8]} 46. Rxg5 {[%clk 0:00:45.3]} 46... Rf6 {[%clk 0:00:07.2]}
47. Kc1 {[%clk 0:00:32.3]} 47... Rf2 {[%clk 0:00:06.1]} 48. Re5 {[%clk 0:00:33]}
48... Rc2+ {[%clk 0:00:07.3]} 49. Kb1 {[%clk 0:00:34.2]} 49... Re2 {[%clk
0:00:08.3]} 50. Ne6+ {[%clk 0:00:32.8]} 50... Kd7 {[%clk 0:00:06.2]} 51. Nd4
{[%clk 0:00:34.7]} 51... Re1+ {[%clk 0:00:06.6]} 52. Ka2 {[%clk 0:00:35.2]}
52... Kd6 {[%clk 0:00:04.6]} 53. Rxe3 {[%clk 0:00:34.8]} 53... Rxe3 {[%clk
0:00:03.1]} 54. Nf5+ {[%clk 0:00:35.9]} 1-0